bitfinex/quotes_ETHUSD_20220731
["timestamp","ask_amount","ask_price","bid_price","bid_amount"]
[1659307915193,2.64564185,1675.0,1674.3,1.04491922]
[1659307915644,0.05,1675.1,1674.7,0.2]
[1659307915840,8.1132,1675.3,1674.8,0.2]
[1659307915995,11.3871,1675.4,1674.7,1.137]
[1659307916193,11.3871,1675.4,1674.7,1.78171435]
[1659307916641,8.16669128,1675.4,1674.7,1.78171435]
[1659307916885,8.16669128,1675.4,1674.7,4.98171435]
[1659307917100,8.16669128,1675.4,1674.7,5.08011435]
[1659307917251,0.00269128,1675.4,1674.8,2.89804672]
[1659307917454,0.05,1675.5,1674.9,0.64471435]
[1659307917656,4.55,1675.7,1675.1,0.2]
[1659307917853,3.89804672,1675.7,1675.1,0.2]
[1659307918090,5.89804672,1675.6,1675.1,0.2]
[1659307918292,3.34554672,1675.5,1674.9,0.05]
[1659307918605,3.19804672,1675.4,1674.7,14.1499]
[1659307918761,3.19804672,1675.4,1674.8,0.34471435]
[1659307919100,0.3,1675.4,1675.0,0.2]
[1659307919304,0.3,1675.5,1675.0,3.09804672]
[1659307919462,7.55,1675.7,1675.1,0.34471435]
[1659307919661,7.8,1675.7,1675.1,0.34471435]
[1659307919863,7.8,1675.7,1675.1,0.64304435]
[1659307920395,7.8,1675.7,1675.5,0.2]
[1659307920642,4.3,1675.7,1675.5,0.2]
[1659307921088,7.8,1675.7,1675.5,0.2]
[1659307921289,4.3,1675.7,1675.5,0.2]
[1659307921704,7.8,1675.7,1675.3,0.54471435]
[1659307921921,7.8,1675.7,1675.3,0.34471435]
[1659307922123,4.3,1675.7,1675.3,0.34471435]
[1659307922322,4.25,1675.7,1675.3,0.34471435]
[1659307922734,7.75,1675.7,1675.3,0.34471435]
[1659307922900,4.25,1675.7,1675.3,0.34471435]
[1659307924007,4.25,1675.7,1675.1,0.29833]
[1659307924349,4.25,1675.7,1675.2,0.2]
[1659307924648,1.05282504,1675.9,1675.3,6.0]
[1659307924799,11.0235,1676.0,1675.6,0.49828]
[1659307925006,7.9192,1676.0,1675.6,0.49828]
[1659307925407,0.00278804,1675.9,1675.6,0.29828]
[1659307926147,0.00278804,1675.9,1675.6,0.49828]
[1659307926303,0.05,1676.2,1676.1,3.0]
[1659307926504,11.72,1676.4,1676.1,3.0]
[1659307926761,0.4472,1676.5,1676.2,0.2]
[1659307927044,2.89804672,1676.4,1676.2,0.2]
[1659307927246,9.09504672,1676.4,1675.8,0.05]
[1659307927545,9.09504672,1676.3,1675.6,0.05]
[1659307927700,9.09504672,1676.2,1675.5,8.0606]
[1659307928067,3.19804672,1676.1,1675.4,3.15981]
[1659307928197,5.89804672,1676.0,1675.4,3.10981]
[1659307928535,5.89804672,1676.0,1675.4,3.45452435]
[1659307929003,2.89804672,1676.0,1675.4,3.75452435]
[1659307929822,9.09504672,1676.0,1675.4,3.45452435]
[1659307930026,3.19804672,1675.9,1675.4,3.45452435]
[1659307930228,3.19804672,1675.9,1675.4,3.10981]
[1659307930548,8.89504672,1675.9,1675.2,0.34836]
[1659307930746,9.09504672,1675.8,1675.2,0.29836]
[1659307930947,12.59504672,1675.6,1675.0,0.05]
[1659307931243,6.197,1675.4,1674.8,0.05]
[1659307931458,3.4975,1675.5,1674.8,0.34471435]
[1659307931754,2.89804672,1675.4,1674.8,0.34471435]
[1659307932038,3.0,1675.5,1674.6,0.05]
[1659307932039,2.89804672,1675.2,1674.6,0.05]
[1659307932242,7.79991142,1675.5,1674.4,0.05]
[1659307932243,3.5,1674.9,1674.4,0.05]
[1659307932422,3.5,1674.9,1674.0,9.63534]
[1659307932423,9.54274672,1674.8,1674.2,0.05]
[1659307932627,2.89804672,1674.7,1674.0,8.1931]
[1659307932795,3.4477,1674.6,1674.0,8.1431]
[1659307932996,2.89804672,1674.5,1673.8,10.8693]
[1659307933302,9.39504672,1674.5,1673.9,0.29858]
[1659307933500,2.89804672,1674.4,1673.9,0.29858]
[1659307933727,3.19804672,1674.4,1673.9,0.29858]
[1659307933929,6.497,1674.5,1673.9,0.29858]
[1659307933930,2.84804672,1674.3,1673.9,0.29858]
[1659307934326,0.3,1674.3,1673.9,0.29858]
[1659307934534,0.35,1674.5,1674.0,0.37598436]
[1659307934725,0.05,1674.7,1674.0,0.37598436]
[1659307934928,0.05,1674.7,1673.9,0.74648]
[1659307934929,2.89804672,1674.6,1674.1,0.47450436]
[1659307935096,2.89804672,1674.6,1674.1,0.29852]
[1659307935097,3.19804672,1674.6,1674.1,0.29852]
[1659307935735,2.89804672,1674.5,1674.0,0.34683323]
[1659307936735,3.19804672,1674.6,1674.0,0.64539323]
[1659307937047,3.19804672,1674.6,1674.0,1.12137759]
[1659307937048,0.3,1674.6,1674.0,1.12137759]
[1659307937226,0.05,1674.7,1674.0,1.12137759]
[1659307937227,0.05,1674.7,1674.1,0.4478]
[1659307937426,7.9463,1674.8,1674.2,0.66094666]
[1659307937618,10.84434672,1674.8,1674.2,0.66094666]
[1659307938060,10.74434672,1674.8,1674.2,1.15944666]
[1659307938464,11.04434672,1674.8,1674.2,0.95944666]
[1659307938666,11.49204672,1674.8,1674.2,0.95944666]
[1659307939420,2.89804672,1674.7,1674.2,0.95944666]
[1659307939621,3.19804672,1674.7,1674.2,0.95944666]
[1659307942031,3.19804672,1674.7,1674.2,0.65944666]
[1659307942032,2.89804672,1674.6,1674.2,0.65944666]
[1659307942263,2.89804672,1674.6,1674.2,0.2985]
[1659307942464,2.89804672,1674.6,1674.0,0.29858]
[1659307942631,0.35,1674.7,1674.2,0.2]
[1659307942959,3.72838,1674.9,1674.6,0.2]
[1659307943124,3.72838,1674.9,1674.4,0.2]
[1659307943125,0.02608,1674.9,1674.4,0.2]
[1659307943326,0.05,1675.1,1674.5,1.83683435]
[1659307943570,6.197,1675.1,1674.3,0.05]
[1659307943755,6.197,1674.9,1674.2,0.05]
[1659307943963,9.09504672,1674.8,1674.1,10.7385]
[1659307944278,9.09504672,1674.7,1674.1,2.7765]
[1659307944576,3.19804672,1674.6,1674.1,2.7765]
[1659307944757,2.89804672,1674.5,1674.1,2.7765]
[1659307945151,2.89804672,1674.5,1674.1,3.07505]
[1659307945482,2.89804672,1674.5,1674.1,0.29855]
[1659307946636,2.89804672,1674.5,1674.2,0.34471435]
[1659307947092,0.05,1674.8,1674.4,2.7]
[1659307947232,15.87960507,1675.1,1674.7,3.4]
[1659307947233,0.05,1675.0,1674.7,3.4]
[1659307947575,8.1947,1675.2,1674.7,3.0]
[1659307947762,2.89804672,1675.1,1674.7,0.29841]
[1659307948581,2.89804672,1675.1,1674.7,3.28251]
[1659307949466,11.39274672,1675.2,1674.7,3.28251]
[1659307949632,11.39274672,1675.2,1674.8,0.3]
[1659307950073,11.39274672,1675.2,1674.8,0.59844]
[1659307950269,3.19804672,1675.2,1674.8,0.59844]
[1659307950697,3.19804672,1675.2,1674.8,0.3]
[1659307950698,2.89804672,1675.1,1674.8,0.3]
[1659307950918,2.89804672,1675.1,1674.6,0.59849]
[1659307951070,9.54264672,1675.1,1674.6,0.29849]
[1659307951276,3.19804672,1675.0,1674.6,0.29849]
[1659307951476,2.89804672,1674.9,1674.4,10.86872]
[1659307951695,3.19804672,1674.9,1674.4,3.50712]
[1659307953288,0.35,1675.1,1674.4,3.50712]
[1659307953602,3.19804672,1675.0,1674.5,0.2985]
[1659307953821,2.89804672,1674.9,1674.5,0.2985]
[1659307954314,0.3,1675.0,1674.2,0.05]
[1659307954315,9.09504672,1674.7,1674.2,0.05]
[1659307954481,9.09504672,1674.7,1674.2,0.29855]
[1659307954482,13.04274672,1674.6,1674.2,0.29855]
[1659307954690,2.89804672,1674.5,1673.9,0.05]
[1659307954873,12.09504672,1674.5,1673.7,0.05]
[1659307955077,9.09504672,1674.3,1673.6,0.34864]
[1659307955301,12.54284672,1674.2,1673.5,15.4779]
[1659307955519,9.39504672,1674.1,1673.5,15.4279]
[1659307955715,2.89804672,1674.0,1673.5,15.4279]
[1659307956313,2.89804672,1674.0,1673.5,7.9923]
[1659307956478,2.89804672,1674.0,1673.5,7.6923]
[1659307957313,2.89804672,1674.0,1673.5,7.99096]
[1659307957487,0.3,1674.1,1673.6,0.34471435]
[1659307957688,0.35,1674.3,1673.6,0.34471435]
[1659307957999,2.89804672,1674.2,1673.7,0.29859]
[1659307958271,2.89804672,1674.2,1673.7,0.59859]
[1659307959125,2.89804672,1674.2,1673.6,0.34471435]
[1659307959126,9.09504672,1674.2,1673.6,0.34471435]
[1659307959348,3.64584672,1674.1,1673.6,0.34471435]
[1659307959653,2.89804672,1674.0,1673.6,0.34471435]
[1659307959813,3.0,1673.9,1673.5,0.29867]
[1659307960015,9.39504672,1673.8,1673.5,0.29867]
[1659307960257,2.89804672,1673.7,1673.2,5.9749]
[1659307960453,9.09504672,1673.7,1673.2,2.865]
[1659307960624,3.19804672,1673.6,1673.1,7.7455]
[1659307960825,0.3,1673.6,1673.1,9.5376]
[1659307961161,0.35,1673.8,1673.1,9.5376]
[1659307961327,2.89804672,1673.8,1673.1,9.5376]
[1659307961527,2.89804672,1673.8,1673.2,0.34471435]
[1659307961732,3.19414658,1673.8,1673.3,0.29869]
[1659307962113,0.29609986,1673.8,1673.3,0.24869]
[1659307962547,2.89804672,1673.9,1673.3,0.24869]
[1659307963246,9.09504672,1673.9,1673.3,0.24869]
[1659307963444,2.89804672,1673.8,1673.3,0.24869]
[1659307963610,3.19804672,1673.8,1673.3,0.24869]
[1659307963812,3.19804672,1673.8,1673.4,0.34471435]
[1659307964163,11.5928,1674.0,1673.6,0.2]
[1659307964457,11.15494672,1674.0,1673.6,0.49861]
[1659307964658,0.05,1674.2,1673.7,0.17598436]
[1659307964810,2.89804672,1674.2,1673.7,0.17598436]
[1659307965211,8.8066,1674.4,1673.9,0.2]
[1659307965412,2.89804672,1674.4,1674.0,0.29854]
[1659307966101,2.89804672,1674.6,1674.2,0.2]
[1659307966254,8.3588,1674.7,1674.5,0.2]
[1659307966255,11.20684672,1674.7,1674.5,0.2]
[1659307966458,8.7291,1674.9,1674.5,0.2]
[1659307966656,11.17954672,1674.9,1674.5,0.84319435]
[1659307966866,2.89804672,1674.9,1674.5,1.14319435]
[1659307968262,2.89804672,1674.9,1674.5,0.59848]
[1659307968465,3.19804672,1674.9,1674.5,0.29848]
[1659307969594,2.89804672,1674.8,1674.5,0.29848]
[1659307970826,2.89804672,1674.8,1674.2,4.58465]
[1659307971001,2.89804672,1674.8,1674.0,11.69514]
[1659307971002,6.197,1674.5,1674.0,0.05]
[1659307971202,9.54284672,1674.4,1673.8,0.05]
[1659307971551,2.89804672,1674.3,1673.7,10.86311]
[1659307971696,2.89804672,1674.3,1673.7,11.20782435]
[1659307973337,2.89804672,1674.3,1673.7,12.70080435]
[1659307973550,2.89804672,1674.3,1673.7,13.14870435]
[1659307973855,2.89804672,1674.3,1673.7,11.50782435]
[1659307974500,3.24804672,1674.4,1673.7,11.50782435]
[1659307974700,3.19804672,1674.4,1673.8,1.612304]
[1659307974901,3.19804672,1674.4,1673.9,0.29857]
[1659307977271,30.31497437,1674.6,1674.4,0.2]
[1659307977272,0.05,1674.6,1674.4,0.2]
[1659307977547,0.05,1674.9,1674.4,12.66335]
[1659307977704,0.96218436,1675.2,1674.4,12.66335]
[1659307977705,0.05,1675.1,1674.4,11.02334]
[1659307977905,0.4975,1675.2,1674.5,0.34471435]
[1659307978105,6.6445,1675.2,1674.5,0.64319435]
[1659307979204,6.9445,1675.2,1674.5,0.64319435]
[1659307979838,6.197,1675.0,1674.4,0.05]
[1659307980048,0.7476,1674.9,1674.2,0.05]
[1659307980247,6.197,1674.8,1674.1,3.268]
[1659307980430,6.197,1674.8,1674.1,3.56271435]
[1659307980605,6.197,1674.8,1674.1,3.86126435]
[1659307981037,3.19804672,1674.7,1674.1,3.86126435]
[1659307981340,2.89804672,1674.6,1674.1,3.86126435]
[1659307981563,2.89804672,1674.6,1674.1,4.16126435]
[1659307982104,2.89804672,1674.6,1674.2,1.79108]
[1659307982364,0.05,1674.9,1674.6,0.2]
[1659307982562,0.05,1675.2,1674.6,1.8115468]
[1659307982772,2.89804672,1675.1,1674.6,2.4083568]
[1659307982925,2.89804672,1675.1,1674.5,0.3]
[1659307983124,2.89804672,1675.1,1674.4,1.79233]
[1659307983537,2.89804672,1675.1,1674.5,0.29849]
[1659307983933,3.19804672,1675.1,1674.5,0.29849]
[1659307984267,3.19804672,1675.0,1674.5,0.29849]
[1659307984474,2.89804672,1674.9,1674.3,9.69568]
[1659307984707,2.84804672,1674.9,1674.4,0.3631392]
[1659307984920,6.197,1674.7,1674.2,0.05]
[1659307985076,9.09504672,1674.6,1674.0,10.3693]
[1659307985276,2.89804672,1674.5,1674.0,2.7282]
[1659307985474,9.09504672,1674.5,1674.0,2.7282]
[1659307985702,2.89804672,1674.4,1674.0,2.7282]
[1659307985910,2.89804672,1674.4,1673.8,7.7718]
[1659307986073,3.14584672,1674.4,1673.8,7.7718]
[1659307986272,2.89804672,1674.3,1673.8,7.7718]
[1659307986476,19.59504672,1674.3,1673.6,11.3095]
[1659307986700,5.89804672,1674.2,1673.6,11.2595]
[1659307986869,5.89804672,1674.2,1673.4,7.8218]
[1659307986870,16.09504672,1674.1,1673.4,7.8218]
[1659307987188,9.84294672,1674.0,1673.4,7.7718]
[1659307987369,2.89804672,1673.9,1673.4,7.7718]
[1659307988013,2.89804672,1673.9,1673.2,10.6056]
[1659307988014,9.09504672,1673.9,1673.2,10.6056]
[1659307988216,9.09504672,1673.8,1673.2,10.5556]
[1659307988453,3.19804672,1673.7,1673.2,10.90031435]
[1659307988649,2.89804672,1673.6,1673.2,10.90031435]
[1659307988875,2.84804672,1673.6,1673.2,10.90031435]
[1659307989228,2.84804672,1673.6,1673.2,0.34471435]
[1659307993331,2.74804672,1673.6,1673.2,0.34471435]
[1659307994126,2.74804672,1673.6,1673.1,0.29871]
[1659307994467,9.697,1673.5,1672.9,0.05]
[1659307994677,2.89804672,1673.4,1672.8,0.29878]
[1659307994882,9.09504672,1673.4,1672.8,0.29878]
[1659307995082,2.89804672,1673.3,1672.8,0.29878]
[1659307995280,2.89804672,1673.3,1672.7,2.9911]
[1659307995281,3.19804672,1673.3,1672.7,2.9911]
[1659307995457,2.89804672,1673.2,1672.7,2.9911]
[1659307995655,3.19804672,1673.2,1672.7,2.9911]
[1659307995855,2.89804672,1673.1,1672.7,2.9911]
[1659307996386,2.89804672,1673.1,1672.6,9.46784]
[1659307996540,2.89804672,1673.1,1672.7,0.2988]
[1659307996876,0.3,1673.2,1672.7,0.2988]
[1659307996877,3.19804672,1673.2,1672.7,0.2988]
[1659307997087,8.8242,1673.4,1672.7,0.2988]
[1659307997088,0.35,1673.4,1673.0,0.2]
[1659307997390,11.4501,1673.6,1673.1,0.34471435]
[1659307997571,11.22424672,1673.6,1673.1,0.34471435]
[1659307997982,11.12424672,1673.6,1673.1,0.34471435]
[1659307998348,11.12424672,1673.6,1673.2,0.2]
[1659307998574,2.89804672,1673.5,1673.1,2.13691435]
[1659307998844,3.19804672,1673.5,1673.1,2.13691435]
[1659307999177,3.19804672,1673.5,1673.1,0.64341435]
[1659308001203,2.89804672,1673.4,1673.1,0.64341435]
[1659308001401,2.89804672,1673.4,1673.1,0.34471435]
[1659308001790,2.89804672,1673.4,1672.9,3.59876]
[1659308002089,2.89804672,1673.4,1672.8,0.4982]
[1659308002090,9.09504672,1673.4,1672.7,7.6025]
[1659308002291,2.89804672,1673.3,1672.7,7.5525]
[1659308002520,2.89804672,1673.3,1672.5,3.0411]
[1659308002521,13.34804672,1673.3,1672.5,3.0411]
[1659308002712,7.3,1673.1,1672.5,2.9911]
[1659308002922,0.3,1673.1,1672.5,2.9911]
[1659308003076,6.24804672,1673.2,1672.5,3.33581435]
[1659308003274,6.19804672,1673.2,1672.5,3.35442595]
[1659308003551,2.89804672,1673.1,1672.5,3.35442595]
[1659308003937,2.89804672,1673.1,1672.5,3.65442595]
[1659308004145,2.89804672,1673.1,1672.5,3.95324595]
[1659308004629,9.09504672,1673.1,1672.5,0.96214595]
[1659308004802,2.89804672,1673.0,1672.5,0.96214595]
[1659308005000,3.19804672,1673.0,1672.5,0.96214595]
[1659308005231,2.89804672,1672.9,1672.5,0.96214595]
[1659308005545,3.19804672,1672.9,1672.5,0.96214595]
[1659308006346,0.3,1672.9,1672.5,0.96214595]
[1659308006498,0.05,1673.2,1672.8,0.2]
[1659308006699,2.89804672,1673.1,1672.8,0.84349435]
[1659308007812,2.79804672,1673.1,1672.8,0.84349435]
[1659308008245,3.09804672,1673.1,1672.8,0.84349435]
[1659308010039,3.09804672,1673.1,1672.8,0.64349435]
[1659308010247,3.09804672,1673.1,1672.8,0.66246801]
[1659308013397,3.09804672,1673.1,1672.5,4.84282]
[1659308013398,2.39362581,1672.6,1671.7,14.03621]
[1659308013604,8.58581329,1672.1,1671.4,1.49486]
[1659308013844,8.50912712,1672.0,1671.4,1.49486]
[1659308014038,2.3081554,1671.9,1671.2,0.01521]
[1659308014200,2.3081554,1671.9,1671.1,10.46782646]
[1659308014402,2.3581554,1671.9,1671.1,10.46782646]
[1659308014602,2.6581554,1671.9,1671.1,10.46782646]
[1659308016021,0.35,1671.9,1671.1,10.46782646]
[1659308016335,14.6403,1672.3,1671.6,1.137]
[1659308016336,0.3,1672.3,1671.6,1.137]
[1659308016529,8.3053,1672.5,1671.7,0.4485]
[1659308016900,8.3053,1672.5,1671.7,0.74735]
[1659308017099,8.3553,1672.5,1671.7,0.74735]
[1659308017500,8.3553,1672.5,1671.7,0.4485]
[1659308019066,8.3553,1672.5,1672.0,1.133]
[1659308019224,8.3053,1672.5,1672.1,0.4484]
[1659308019424,8.3053,1672.5,1672.1,0.3484]
[1659308020131,0.05,1672.7,1672.0,5.18022]
[1659308020450,0.05,1672.8,1672.0,5.18022]
[1659308020619,0.05,1672.9,1672.0,5.18022]
[1659308020821,0.05,1672.9,1672.0,5.23022]
[1659308021023,0.05,1672.9,1672.0,12.55332]
[1659308021619,0.05,1672.9,1672.0,15.60972]
[1659308022017,0.05,1672.9,1672.3,8.633]
[1659308022217,0.05,1673.0,1672.4,24.85130797]
[1659308022422,0.05,1673.2,1672.6,1.133]
[1659308022664,0.05,1673.4,1672.6,1.433]
[1659308022870,0.05,1673.4,1672.6,9.433]
[1659308023024,0.05,1673.4,1672.6,10.05718436]
[1659308023855,0.05,1673.4,1672.7,2.89804672]
[1659308024037,0.05,1673.5,1672.8,3.3]
[1659308024241,3.26173473,1673.5,1672.8,3.3]
[1659308024440,3.56173473,1673.5,1672.8,3.3]
[1659308024670,4.00973473,1673.5,1672.8,3.3]
[1659308024877,2.89804672,1673.4,1672.8,0.3]
[1659308025168,2.89804672,1673.4,1672.6,3.4064]
[1659308025169,7.00878801,1673.3,1672.6,3.4064]
[1659308025374,7.00878801,1673.3,1672.6,3.0564]
[1659308025375,3.19804672,1673.2,1672.6,3.0564]
[1659308025543,2.89804672,1673.1,1672.6,3.0564]
[1659308025869,3.70983473,1673.1,1672.6,3.0564]
[1659308026080,3.26173473,1673.1,1672.6,3.0564]
[1659308026486,3.34614672,1673.0,1672.5,7.6231]
[1659308026694,3.64614672,1673.0,1672.5,7.6231]
[1659308026994,3.19804672,1673.0,1672.5,7.6231]
[1659308027166,3.19804672,1673.0,1672.5,0.3]
[1659308027592,3.19804672,1673.0,1672.4,10.8224]
[1659308029888,0.3,1673.0,1672.5,3.0]
[1659308030324,2.05716496,1673.1,1672.5,3.0]
[1659308030537,4.95521168,1673.1,1672.5,3.0]
[1659308033183,5.40331168,1673.1,1672.5,3.0]
[1659308033647,6.39804672,1673.0,1672.4,10.6224]
[1659308033853,9.09504672,1672.9,1672.2,7.9573]
[1659308034029,3.19804672,1672.8,1672.2,7.9073]
[1659308034341,3.19804672,1672.8,1672.1,14.0043]
[1659308034342,2.89804672,1672.7,1672.1,14.0043]
[1659308034659,0.49893,1672.6,1672.1,14.0043]
[1659308034959,0.79893,1672.6,1672.1,14.0043]
[1659308035317,0.05,1672.8,1672.2,2.89804672]
[1659308035518,0.05,1672.9,1672.3,6.8]
[1659308035751,0.05,1673.0,1672.4,3.34634672]
[1659308035964,0.05,1673.2,1672.5,5.89804672]
[1659308036260,0.05,1673.3,1672.5,6.19804672]
[1659308036414,3.34614672,1673.3,1672.5,6.19804672]
[1659308037146,2.89804672,1673.3,1672.5,6.19804672]
[1659308037354,12.61324688,1673.4,1672.5,6.19804672]
[1659308037663,7.792,1673.4,1672.7,1.137]
[1659308037971,0.05,1673.5,1672.7,10.13170278]
[1659308038261,0.05,1673.5,1673.0,1.437]
[1659308038416,0.05,1673.7,1673.1,14.19404672]
[1659308038615,0.05,1673.9,1673.2,5.89804672]
[1659308038860,0.05,1674.0,1673.2,13.54594672]
[1659308039042,27.30795416,1674.3,1673.3,8.39804672]
[1659308039230,26.86015416,1674.3,1673.4,5.89804672]
[1659308039427,26.86015416,1674.3,1673.4,13.64394672]
[1659308039632,0.2,1674.1,1673.4,0.05]
[1659308039870,0.2,1673.6,1673.3,0.05]
[1659308040071,6.497,1673.8,1673.1,3.3]
[1659308040447,3.9479,1674.0,1673.1,3.3]
[1659308040753,6.397,1673.8,1673.1,3.35]
[1659308040962,3.26173473,1673.7,1673.1,3.3]
[1659308041641,3.26173473,1673.7,1673.0,10.9599]
[1659308041845,3.26173473,1673.7,1673.0,2.2689]
[1659308042045,3.26173473,1673.7,1673.0,5.2689]
[1659308042353,3.26173473,1673.7,1673.0,3.0]
[1659308043132,0.2,1673.5,1672.9,0.05]
[1659308043337,3.26173473,1673.4,1672.7,3.048]
[1659308043536,3.26173473,1673.4,1672.6,0.05]
[1659308043537,12.79504672,1673.3,1672.6,0.05]
[1659308043762,12.79504672,1673.3,1672.5,0.05]
[1659308043763,2.89804672,1673.2,1672.5,0.05]
[1659308043958,2.89804672,1673.2,1672.4,0.05]
[1659308043959,0.36368801,1673.1,1672.4,0.05]
[1659308044271,3.56173473,1673.1,1672.3,2.7704]
[1659308044442,3.61173473,1673.1,1672.3,13.26804672]
[1659308044626,0.4481,1673.0,1672.3,13.26804672]
[1659308044972,0.36368801,1672.9,1672.3,13.26804672]
[1659308045264,0.66368801,1672.9,1672.3,13.26804672]
[1659308045970,0.05,1673.0,1672.3,14.76196672]
[1659308045971,0.35,1673.0,1672.3,14.76196672]
[1659308046150,3.24804672,1673.1,1672.3,14.76196672]
[1659308046522,3.24804672,1673.1,1672.4,4.79383]
[1659308046771,3.19804672,1673.1,1672.4,5.09257]
[1659308047160,3.19804672,1673.1,1672.4,3.59874]
[1659308047471,3.19804672,1673.1,1672.5,1.79246]
[1659308047981,0.3,1673.1,1672.5,4.39176672]
[1659308048173,0.35,1673.2,1672.6,5.89804672]
[1659308048327,3.19804672,1673.2,1672.6,3.3]
[1659308048543,3.56173473,1673.2,1672.6,0.3]
[1659308048743,3.56173473,1673.2,1672.5,4.79372]
[1659308049144,3.56173473,1673.2,1672.5,1.79372]
[1659308049344,3.56173473,1673.2,1672.6,2.9]
[1659308049578,3.56173473,1673.2,1672.5,1.79372]
[1659308049996,2.89804672,1673.1,1672.5,1.79372]
[1659308050288,2.89804672,1673.1,1672.4,3.3]
[1659308051163,0.35,1673.2,1672.5,3.37279108]
[1659308051369,0.35,1673.3,1672.6,4.33104672]
[1659308051691,0.35,1673.4,1672.7,7.69008672]
[1659308051895,0.3,1673.4,1672.8,7.82639672]
[1659308052100,8.1312,1673.5,1672.9,3.0]
[1659308052427,8.0812,1673.5,1673.0,4.47997]
[1659308052626,3.4254,1673.6,1673.1,3.0]
[1659308052833,3.19804672,1673.6,1673.0,2.09198]
[1659308053217,3.19804672,1673.6,1673.2,1.49331]
[1659308053386,3.56173473,1673.6,1673.2,1.49331]
[1659308053586,3.56173473,1673.6,1673.1,3.0]
[1659308053798,3.56173473,1673.6,1672.9,11.6244]
[1659308054039,3.56173473,1673.6,1672.9,11.5744]
[1659308054325,3.56173473,1673.6,1672.9,13.068]
[1659308054526,3.56173473,1673.6,1672.9,13.36671]
[1659308056919,5.29895753,1673.6,1672.9,8.2744]
[1659308057116,0.748,1673.5,1672.9,8.2744]
[1659308057395,0.3,1673.5,1672.9,8.2744]
[1659308057722,0.66368801,1673.6,1672.9,11.17244672]
[1659308057957,0.3,1673.6,1673.0,3.34614672]
[1659308058153,0.35,1673.7,1673.1,2.89804672]
[1659308058330,2.89804672,1673.7,1673.1,5.8362]
[1659308058535,3.19804672,1673.7,1673.1,5.8362]
[1659308058925,2.89804672,1673.6,1673.1,5.8362]
[1659308059325,2.89804672,1673.6,1672.9,8.3244]
[1659308059326,3.09804672,1673.6,1672.9,8.3244]
[1659308059526,0.15,1673.4,1672.9,8.2744]
[1659308060763,3.19804672,1673.5,1672.9,8.2744]
[1659308061411,0.3,1673.5,1673.0,2.89804672]
[1659308061776,8.4714,1673.6,1673.0,3.07403108]
[1659308062382,8.4714,1673.6,1673.1,1.49325]
[1659308062383,8.83508801,1673.6,1673.1,1.49325]
[1659308062863,8.4714,1673.6,1673.1,1.49325]
[1659308063064,9.8384,1673.8,1673.3,3.5]
[1659308063065,0.4979,1673.8,1673.3,3.5]
[1659308063266,3.1405,1674.1,1673.3,3.5]
[1659308063267,0.4979,1674.0,1673.7,0.05]
[1659308063499,10.6782,1674.1,1673.7,0.05]
[1659308063950,7.5377,1674.1,1673.7,1.54282]
[1659308064751,7.8377,1674.1,1673.7,1.54282]
[1659308065339,0.3,1674.1,1673.8,1.49283]
[1659308065540,3.4978,1674.4,1673.8,1.49283]
[1659308065743,2.89804672,1674.3,1673.8,1.49283]
[1659308066510,0.15,1674.2,1673.6,0.05]
[1659308066757,0.15,1674.2,1673.5,7.9155]
[1659308066758,3.85953473,1674.1,1673.5,7.9155]
[1659308066915,3.19804672,1674.0,1673.3,3.05]
[1659308067117,3.19804672,1674.0,1673.3,4.49345]
[1659308067809,3.56173473,1674.0,1673.5,1.49325]
[1659308068977,9.09504672,1673.9,1673.3,0.05]
[1659308069277,9.09504672,1673.9,1673.1,2.8064]
[1659308069278,3.56173473,1673.8,1673.1,2.8064]
[1659308069478,3.34594672,1673.7,1673.1,2.7564]
[1659308069676,2.89804672,1673.6,1673.1,2.7564]
[1659308070089,3.19804672,1673.6,1673.1,2.7564]
[1659308070308,3.19804672,1673.6,1673.2,1.49357]
[1659308071534,3.19804672,1673.6,1673.3,0.29869]
[1659308071701,3.19804672,1673.6,1673.4,1.49347]
[1659308074298,3.19804672,1673.6,1673.4,1.79213]
[1659308075798,3.19804672,1673.6,1673.2,0.1194761]
[1659308075999,16.84304672,1673.5,1672.9,0.05]
[1659308076201,6.39804672,1673.4,1672.7,0.05]
[1659308076401,2.89804672,1673.3,1672.6,0.05]
[1659308076705,0.3,1673.3,1672.7,1.4941]
[1659308076940,0.3,1673.3,1672.8,0.05]
[1659308077105,3.19804672,1673.4,1672.9,5.1979852]
[1659308077307,3.19804672,1673.4,1672.9,2.2106352]
[1659308077634,3.19804672,1673.4,1672.9,4.0030352]
[1659308077834,3.19804672,1673.4,1672.9,3.28607]
[1659308078344,3.19804672,1673.4,1673.1,4.48098]
[1659308078646,3.19804672,1673.4,1673.1,1.79238]
[1659308079955,3.19804672,1673.4,1673.2,1.49366]
[1659308081030,3.56173473,1673.4,1673.2,1.49366]
[1659308083378,3.55809103,1673.4,1673.2,1.49366]
[1659308083577,3.50809103,1673.4,1673.2,1.49366]
[1659308086968,0.2463563,1673.4,1673.2,1.6131428]
[1659308087167,14.3872,1673.8,1673.3,0.29864]
[1659308087350,2.89804672,1673.7,1673.3,1.79188]
[1659308087546,10.50884672,1673.8,1673.3,1.79188]
[1659308087768,10.50884672,1673.8,1673.5,2.98645]
[1659308087977,2.89804672,1673.8,1673.5,2.98645]
[1659308088379,2.89804672,1673.8,1673.5,3.28509]
[1659308088582,2.89804672,1673.8,1673.6,1.49324]
[1659308088993,3.19804672,1673.8,1673.6,1.49324]
[1659308089181,3.0812,1674.1,1673.6,2.09182]
[1659308089393,3.0312,1674.1,1673.8,4.47852]
[1659308089563,2.89804672,1674.1,1673.8,4.47852]
[1659308089764,2.89804672,1674.1,1673.9,0.29856]
[1659308090058,2.89804672,1674.1,1674.0,1.49302]
[1659308090212,2.84804672,1674.1,1674.0,1.49302]
[1659308090564,3.14804672,1674.1,1674.0,1.49302]